Workbook

Sheet Synthesis (2)
B1: a1 | C1: 5 | D1: =+C1*D_R -> 0.0872664626 | E1: d1 | F1: 50 | G1: 45 | W1: =PI()/180 -> 0.01745329252
B2: a1 | C2: 0 | D2: 0 | E2: d1 | F2: 0 | G2: 0 | R2: Determine the coefficients of the quartic equation using FivePos Function
B3: a2 | C3: 30 | D3: 0.5235987756 | E3: d2 | F3: -5 | G3: 105 | R3: c0 | S3: c1 | T3: c2 | U3: c3
B4: a3 | C4: 0 | D4: 0 | E4: d3 | F4: 40 | G4: 115 | R4: =Fivepos(F3:G3,F4:G4,F5:G5,F6:G6,D3,D4,D5,D6) -> -0.1825357126 | S4: -2.610649727 | T4: -0.6427167229 | U4: 12.11297115 | AD4: Example is from the Paper
B5: a4 | C5: -50 | D5: =+C5*D_R -> -0.872664626 | E5: d4 | F5: 60 | G5: 80 | R5: Determine the roots of the quartic equation using Quartic function
B6: a5 | C6: -75 | D6: -1.308996939 | E6: d5 | F6: 15 | G6: 65 | R6: t1 | S6: t2 | T6: t3 | U6: t4
A7: 20 | E7: #1 | G7: #2 | I7: #3 | K7: #4 | R7: =quartic(1,U4,T4,S4,R4) -> 0.5109929455 | S7: -0.07302885342 | T7: -0.4026459484 | U7: -12.14828929
A8: E1 | B8: =F1 -> 50 | C8: =G1 -> 45 | D8: CenterPoint | E8: =V12 -> -71.92273692 | F8: =W12 -> 38.46179033 | G8: =V16 -> 105.9379771 | H8: =W16 -> 66.72077147 | I8: =V20 -> 71.79306364 | J8: =W20 -> 82.80702718 | K8: =V24 -> 93.20847597 | L8: =W24 -> 130.7410538
A9: F1 | B9: =B8+A7*COS(D1) -> 69.92389396 | C9: =C8+A7*SIN(D1) -> 46.74311485 | D9: CirclePoint | E9: =T12 -> -2.424828611 | F9: =U12 -> -41.88871782 | G9: =T16 -> -96.5452137 | H9: =U16 -> 55.08604302 | I9: =T20 -> -15.45797168 | J9: =U20 -> 42.05899845 | K9: =T24 -> 103.6666946 | L9: =U24 -> 65.3068701 | R9: b41 | S9: b42 | T9: -Zx | U9: -Zy | V9: Rx | W9: Ry
A10: E2 | B10: =F3+F1 -> 45 | C10: =G3+G1 -> 150 | D10: P1 | E10: =B8 -> 50 | F10: =C8 -> 45 | G10: =F1 -> 50 | H10: =G1 -> 45 | I10: =G10 -> 50 | J10: =H10 -> 45 | K10: =I10 -> 50 | L10: =J10 -> 45 | O10: b21 | P10: =ATAN2((1-R7^2),2*R7) -> 0.9448064813 | R10: =Burmester($F$3:$G$3,$F$4:$G$4,$F$5:$G$5,$D$3,$D$4,$D$5,P10) -> 1.651803926 | S10: 5.595010549 | T10: =ThreePosition_Basic2(D3,D5,F3:G3,F5:G5,P10,R10) -> -59.79818705 | U10: -81.98895514 | V10: -122.0286266 | W10: 4.112936888
A11: F2 | B11: =B10+A7*COS(D3+D1) -> 61.38304089 | C11: =C10+A7*SIN(D3+D1) -> 161.4715287 | P11: =P10/D_R -> 54.13342383 | R11: =R10/D_R -> 94.64139355 | S11: =S10/D_R -> 320.5704908 | T11: =ThreePosition_Basic2(D3,D5,F3:G3,F5:G5,P10,S10) -> 356.452062 | U11: -133.9263832 | V11: 68.86614984 | W11: 30.56002104
A12: E3 | B12: =F4+F1 -> 90 | C12: =G4+G1 -> 160 | P12: Rotate+Translate | T12: =CRotate_Trans($F$1:$G$1,T10:U10,$D$1) -> -2.424828611 | U12: -41.88871782 | V12: =CRotate_Trans($F$1:$G$1,V10:W10,$D$1) -> -71.92273692 | W12: 38.46179033
A13: F3 | B13: =B12+A7*COS(D1) -> 109.923894 | C13: =C12+A7*SIN(D1) -> 161.7431149 | O13: b22 | P13: =ATAN2((1-S7^2),2*S7) -> -0.1457988822 | R13: =Burmester($F$3:$G$3,$F$4:$G$4,$F$5:$G$5,$D$3,$D$4,$D$5,P13) -> 5.991617927 | S13: 5.11262465 | T13: =ThreePosition_Basic2(D3,D5,F3:G3,F5:G5,P13,R13) -> -69.39638331 | U13: -37.09381352 | V13: 457.3798393 | W13: -155.863804
A14: E4 | B14: =F5+F1 -> 110 | C14: =G5+G1 -> 125 | P14: =P13/D_R -> -8.353660611 | R14: =R13/D_R -> 343.2944197 | S14: =S13/D_R -> 292.9318147 | T14: =ThreePosition_Basic2(D3,D5,F3:G3,F5:G5,P13,S13) -> -145.1085083 | U14: 22.81991953 | V14: 57.61820618 | W14: 16.76280144
A15: F4 | B15: =B14+A7*COS(D5+D1) -> 124.1421356 | C15: =C14+A7*SIN(D5+D1) -> 110.8578644 | P15: =360+P14 -> 351.6463394 | S15: =S14-360 -> -67.06818532
A16: E5 | B16: =F6+F1 -> 65 | C16: =G6+G1 -> 110 | P16: Rotate+Translate | T16: =CRotate_Trans($F$1:$G$1,T14:U14,$D$1) -> -96.5452137 | U16: 55.08604302 | V16: =CRotate_Trans($F$1:$G$1,V14:W14,$D$1) -> 105.9379771 | W16: 66.72077147
A17: F5 | B17: =B16+A7*COS(D6+D1) -> 71.84040287 | C17: =C16+A7*SIN(D6+D1) -> 91.20614758 | O17: b23 | P17: =ATAN2((1-T7^2),2*T7) -> -0.7655705679 | R17: =Burmester($F$3:$G$3,$F$4:$G$4,$F$5:$G$5,$D$3,$D$4,$D$5,P17) -> 5.083669973 | S17: 4.414262652 | T17: =ThreePosition_Basic2(D3,D5,F3:G3,F5:G5,P17,R17) -> -43.14854242 | U17: -30.44923969 | V17: 73.51682407 | W17: -6.571975863
P18: =P17/D_R -> -43.86396246 | R18: =R17/D_R -> 291.2728339 | S18: =S17/D_R -> 252.9186196 | T18: =ThreePosition_Basic2(D3,D5,F3:G3,F5:G5,P17,S17) -> -65.46520951 | U18: 2.775227989 | V18: 25.00523399 | W18: 35.76376938
P19: =360+P18 -> 316.1360375 | R19: =R18-360 -> -68.72716611 | S19: =S18-360 -> -107.0813804
P20: Rotate+Translate | T20: =CRotate_Trans($F$1:$G$1,T18:U18,$D$1) -> -15.45797168 | U20: 42.05899845 | V20: =CRotate_Trans($F$1:$G$1,V18:W18,$D$1) -> 71.79306364 | W20: 82.80702718
O21: b24 | P21: =ATAN2((1-U7^2),2*U7) -> -2.977330762 | R21: =Burmester($F$3:$G$3,$F$4:$G$4,$F$5:$G$5,$D$3,$D$4,$D$5,P21) -> 3.999691584 | S21: 0.9614478787 | T21: =ThreePosition_Basic2(D3,D5,F3:G3,F5:G5,P21,R21) -> -1.060248402 | U21: -84.05304206 | V21: 22.28729229 | W21: -27.71740404
P22: =P21/D_R -> -170.5884869 | R22: =R21/D_R -> 229.1654471 | S22: =S21/D_R -> 55.08690567 | T22: =ThreePosition_Basic2(D3,D5,F3:G3,F5:G5,P21,S21) -> 55.23233696 | U22: 15.5522357 | V22: 50.5168799 | W22: 81.64891642
P23: =360+P22 -> 189.4115131
O24: Transform | P24: Rotate+Translate | T24: =CRotate_Trans($F$1:$G$1,T22:U22,$D$1) -> 103.6666946 | U24: 65.3068701 | V24: =CRotate_Trans($F$1:$G$1,V22:W22,$D$1) -> 93.20847597 | W24: 130.7410538
B38: =C38*D_R -> 0.0872664626 | C38: =C1 -> 5 | D38: =50 -> 50 | E38: 45
C39: =C3+$C$38 -> 35 | D39: =$D$38+F3 -> 45 | E39: =$E$38+G3 -> 150 | H39: =((D39-$D$38)*COS($B$38))-(E39-$E$38)*SIN($B$38) -> -14.13232648 | I39: =((D39-$D$38)*SIN($B$38))+(E39-$E$38)*COS($B$38) -> 104.1646646
C40: =C4+$C$38 -> 5 | D40: =$D$38+F4 -> 90 | E40: =$E$38+G4 -> 160 | H40: =((D40-$D$38)*COS($B$38))-(E40-$E$38)*SIN($B$38) -> 29.82487751 | I40: =((D40-$D$38)*SIN($B$38))+(E40-$E$38)*COS($B$38) -> 118.04862
C41: -45 | D41: 110 | E41: 125 | H41: 52.79922247 | I41: 84.92492041
C42: -70 | D42: 65 | E42: 110 | H42: 9.277797193 | I42: 66.05999152

Sheet Analysis (2)
V1: =PI()/180 -> 0.01745329252
B2: A0 | C2: =Synthesis!$E$8:$F$10 -> -70.88894158 | D2: 27.8604035 | E2: B0 | F2: =Synthesis!$G$8:$H$10 -> 103.8320262 | G2: 71.51343332 | I2: =Synthesis!A8:C17 -> E1 | J2: 50 | K2: 45
B3: A | C3: 5.347514427 | D3: -46.12720489 | E3: B | F3: -96.86662149 | G3: 42.27540564 | I3: F1 | J3: 69.92389396 | K3: 46.74311485
B4: C | C4: 50 | D4: 45 | E4: C | F4: 50 | G4: 45 | I4: E2 | J4: 35.86767352 | K4: 149.1646646
I5: F2 | J5: 52.25071441 | K5: 160.6361933
A6: Link lengths | C6: İnitial Angles | I6: E3 | J6: 79.82487751 | K6: 163.04862
A7: A0A | B7: =mag((C2-C3),(D2-D3)) -> 106.2363564 | C7: <xA0A | D7: =ATAN2((C3-C2),(D3-D2)) -> -0.7704293256 | E7: =D7/D_R -> -44.14234877 | I7: F3 | J7: 99.74877147 | K7: 164.7917348
A8: AC | B8: =mag((C3-C4),(D3-D4)) -> 101.4791207 | C8: <xAB | D8: =ATAN2((F3-C3),(G3-D3)) -> 2.428525129 | E8: =D8/D_R -> 139.1442403 | I8: E4 | J8: 102.7992225 | K8: 129.9249204
A9: B0B | B9: =mag((F2-F3),(G2-G3)) -> 202.8171824 | C9: <xB0B | D9: =ATAN2((F3-F2),(G3-G2)) -> -2.996929086 | E9: =D9/D_R -> -171.7113881 | I9: F4 | J9: 116.9413581 | K9: 115.7827848
A10: BC | B10: =mag((F3-F4),(G3-G4)) -> 146.891892 | C10: Fixed Angles | I10: E5 | J10: 59.27779719 | K10: 111.0599915
A11: AB | B11: =mag((C3-F3),(D3-G3)) -> 135.1397467 | C11: <xAoBo | D11: =ATAN2((F2-C2),(G2-D2)) -> 0.2448320731 | E11: =D11/D_R -> 14.02784448 | I11: F5 | J11: 66.11820006 | K11: 92.2661391
A12: A0B0 | B12: =mag((C2-F2),(D2-G2)) -> 180.0916533 | C12: <BAC | D12: =D8-ATAN2((C4-C3),(D4-D3)) -> 1.313345828 | E12: =D12/D_R -> 75.249173
C13: <ACD | D13: =ATAN2((C4-C3),(D4-D3))-Synthesis!D1 -> 1.027912838 | E13: =D13/D_R -> 58.89506731
A15: q | B15: =A19+0.01*A20 -> 67 | C15: =B15*D_R -> 1.169370599 | D15: wr to fixed Link | F15: wr to x axis | H15: In degrees
A16: q' | B16: =B15+E7 -> 22.85765123 | C16: =B16*D_R -> 0.3989412732 | D16: q13 | E16: q14 | F16: q13 | G16: q14 | H16: q13 | I16: q14
A17: q" | B17: =B16-E11 -> 8.829806754 | C17: =B17*D_R -> 0.1541092002 | D17: =FourBar2(B7,B11,B9,B12,1,C17) -> 2.312449505 | E17: 2.533002084 | F17: =D17+$D$11 -> 2.557281578 | G17: =E17+$D$11 -> 2.777834157 | H17: =F17/D_R -> 146.5214414 | I17: =G17/D_R -> 159.1581734
A19: 67 | B19: A0 | C19: =C2 -> -70.88894158 | D19: =D2 -> 27.8604035
A20: 0 | B20: A | C20: =C19+B7*COS(C16) -> 27.00496752 | D20: =D19+B7*SIN(C16) -> 69.12716954 | G20: 54.13342383
B21: B | C21: =C27+B9*COS(G17) -> -85.71405616 | D21: =D27+B9*SIN(G17) -> 143.673617
B22: C | C22: =C20+B8*COS(F17-D12) -> 59.58701183 | D22: =D20+B8*SIN(F17-D12) -> 165.233477
B23: A | C23: =C20 -> 27.00496752 | D23: =D20 -> 69.12716954
B24: C | C24: =C22 -> 59.58701183 | D24: =D22 -> 165.233477
B25: D | C25: =C24+20*COS(F17-D12-D13) -> 79.12216478 | D25: =D24+20*SIN(F17-D12-D13) -> 169.5204105
B26: B | C26: =C21 -> -85.71405616 | D26: =D21 -> 143.673617
B27: B0 | C27: =F2 -> 103.8320262 | D27: =G2 -> 71.51343332

Sheet Synthesis
B1: a1 | C1: 5 | D1: =+C1*D_R -> 0.0872664626 | E1: d1 | F1: 50 | G1: 45 | W1: =PI()/180 -> 0.01745329252
B2: a1 | C2: 0 | D2: 0 | E2: d1 | F2: 0 | G2: 0 | R2: Determine the coefficients of the quartic equation using FivePos Function
B3: a2 | C3: 30 | D3: 0.5235987756 | E3: d2 | F3: -14.13232648 | G3: 104.1646646 | R3: c0 | S3: c1 | T3: c2 | U3: c3
B4: a3 | C4: 0 | D4: 0 | E4: d3 | F4: 29.82487751 | G4: 118.04862 | R4: =Fivepos(F3:G3,F4:G4,F5:G5,F6:G6,D3,D4,D5,D6) -> -0.1825357126 | S4: -2.610649727 | T4: -0.6427167229 | U4: 12.11297115 | AD4: Example is from the Paper
B5: a4 | C5: -50 | D5: -0.872664626 | E5: d4 | F5: 52.79922247 | G5: 84.92492041 | R5: Determine the roots of the quartic equation using Quartic function
B6: a5 | C6: -75 | D6: -1.308996939 | E6: d5 | F6: 9.277797193 | G6: 66.05999152 | R6: t1 | S6: t2 | T6: t3 | U6: t4
A7: 20 | E7: #1 | G7: #2 | I7: #3 | K7: #4 | R7: =quartic(1,U4,T4,S4,R4) -> 0.5109929455 | S7: -0.07302885342 | T7: -0.4026459484 | U7: -12.14828929
A8: E1 | B8: =F1 -> 50 | C8: =G1 -> 45 | D8: CenterPoint | E8: =V12 -> -70.88894158 | F8: =W12 -> 27.8604035 | G8: =V16 -> 103.8320262 | H8: =W16 -> 71.51343332 | I8: =V20 -> 68.41503492 | J8: =W20 -> 84.56255068 | K8: =V24 -> 85.57122944 | L8: =W24 -> 134.1806501
A9: F1 | B9: =B8+A7*COS(D1) -> 69.92389396 | C9: =C8+A7*SIN(D1) -> 46.74311485 | D9: CirclePoint | E9: =T12 -> 5.347514427 | F9: =U12 -> -46.12720489 | G9: =T16 -> -96.86662149 | H9: =U16 -> 42.27540564 | I9: =T20 -> -14.95255917 | J9: =U20 -> 36.36515171 | K9: =T24 -> 101.6926163 | L9: =U24 -> 69.90695696 | R9: b41 | S9: b42 | T9: -Zx | U9: -Zy | V9: Rx | W9: Ry
A10: E2 | B10: =F3+F1 -> 35.86767352 | C10: =G3+G1 -> 149.1646646 | D10: P1 | E10: =B8 -> 50 | F10: =C8 -> 45 | G10: =F1 -> 50 | H10: =G1 -> 45 | I10: =G10 -> 50 | J10: =H10 -> 45 | K10: =I10 -> 50 | L10: =J10 -> 45 | O10: b21 | P10: =ATAN2((1-R7^2),2*R7) -> 0.9448064813 | R10: =Burmester($F$3:$G$3,$F$4:$G$4,$F$5:$G$5,$D$3,$D$4,$D$5,P10) -> 1.651803926 | S10: 5.595010549 | T10: =ThreePosition_Basic2(D3,D5,F3:G3,F5:G5,P10,R10) -> -52.42482861 | U10: -86.88871782 | V10: -121.9227369 | W10: -6.538209668
A11: F2 | B11: =B10+A7*COS(D3+D1) -> 52.25071441 | C11: =C10+A7*SIN(D3+D1) -> 160.6361933 | P11: =P10/D_R -> 54.13342383 | R11: =R10/D_R -> 94.64139355 | S11: =S10/D_R -> 320.5704908 | T11: =ThreePosition_Basic2(D3,D5,F3:G3,F5:G5,P10,S10) -> 366.7681077 | U11: -102.3499087 | V11: 65.94061201 | W11: 36.44581137
A12: E3 | B12: =F4+F1 -> 79.82487751 | C12: =G4+G1 -> 163.04862 | P12: Rotate+Translate | T12: =CRotate_Trans($F$1:$G$1,T10:U10,$D$1) -> 5.347514427 | U12: -46.12720489 | V12: =CRotate_Trans($F$1:$G$1,V10:W10,$D$1) -> -70.88894158 | W12: 27.8604035
A13: F3 | B13: =B12+A7*COS(D1) -> 99.74877147 | C13: =C12+A7*SIN(D1) -> 164.7917348 | O13: b22 | P13: =ATAN2((1-S7^2),2*S7) -> -0.1457988822 | R13: =Burmester($F$3:$G$3,$F$4:$G$4,$F$5:$G$5,$D$3,$D$4,$D$5,P13) -> 5.991617927 | S13: 5.11262465 | T13: =ThreePosition_Basic2(D3,D5,F3:G3,F5:G5,P13,R13) -> -65.89937025 | U13: -43.00095369 | V13: 469.2237965 | W13: -115.4074155
A14: E4 | B14: =F5+F1 -> 102.7992225 | C14: =G5+G1 -> 129.9249204 | P14: =P13/D_R -> -8.353660611 | R14: =R13/D_R -> 343.2944197 | S14: =S13/D_R -> 292.9318147 | T14: =ThreePosition_Basic2(D3,D5,F3:G3,F5:G5,P13,S13) -> -146.5452137 | U14: 10.08604302 | V14: 55.9379771 | W14: 21.72077147
A15: F4 | B15: =B14+A7*COS(D5+D1) -> 116.9413581 | C15: =C14+A7*SIN(D5+D1) -> 115.7827848 | P15: =360+P14 -> 351.6463394 | S15: =S14-360 -> -67.06818532
A16: E5 | B16: =F6+F1 -> 59.27779719 | C16: =G6+G1 -> 111.0599915 | P16: Rotate+Translate | T16: =CRotate_Trans($F$1:$G$1,T14:U14,$D$1) -> -96.86662149 | U16: 42.27540564 | V16: =CRotate_Trans($F$1:$G$1,V14:W14,$D$1) -> 103.8320262 | W16: 71.51343332
A17: F5 | B17: =B16+A7*COS(D6+D1) -> 66.11820006 | C17: =C16+A7*SIN(D6+D1) -> 92.2661391 | O17: b23 | P17: =ATAN2((1-T7^2),2*T7) -> -0.7655705679 | R17: =Burmester($F$3:$G$3,$F$4:$G$4,$F$5:$G$5,$D$3,$D$4,$D$5,P17) -> 5.083669973 | S17: 4.414262652 | T17: =ThreePosition_Basic2(D3,D5,F3:G3,F5:G5,P17,R17) -> -40.33052309 | U17: -34.09401441 | V17: 73.80985579 | W17: -0.1395541043
P18: =P17/D_R -> -43.86396246 | R18: =R17/D_R -> 291.2728339 | S18: =S17/D_R -> 252.9186196 | T18: =ThreePosition_Basic2(D3,D5,F3:G3,F5:G5,P17,S17) -> -65.45797168 | U18: -2.941001551 | V18: 21.79306364 | W18: 37.80702718
P19: =360+P18 -> 316.1360375 | R19: =R18-360 -> -68.72716611 | S19: =S18-360 -> -107.0813804
P20: Rotate+Translate | T20: =CRotate_Trans($F$1:$G$1,T18:U18,$D$1) -> -14.95255917 | U20: 36.36515171 | V20: =CRotate_Trans($F$1:$G$1,V18:W18,$D$1) -> 68.41503492 | W20: 84.56255068
O21: b24 | P21: =ATAN2((1-U7^2),2*U7) -> -2.977330762 | R21: =Burmester($F$3:$G$3,$F$4:$G$4,$F$5:$G$5,$D$3,$D$4,$D$5,P21) -> 3.999691584 | S21: 0.9614478787 | T21: =ThreePosition_Basic2(D3,D5,F3:G3,F5:G5,P21,R21) -> 6.269491475 | U21: -83.8256016 | V21: 24.61821336 | W21: -25.66946544
P22: =P21/D_R -> -170.5884869 | R22: =R21/D_R -> 229.1654471 | S22: =S21/D_R -> 55.08690567 | T22: =ThreePosition_Basic2(D3,D5,F3:G3,F5:G5,P21,S21) -> 53.66669459 | U22: 20.3068701 | V22: 43.20847597 | W22: 85.74105383
P23: =360+P22 -> 189.4115131
O24: Transform | P24: Rotate+Translate | T24: =CRotate_Trans($F$1:$G$1,T22:U22,$D$1) -> 101.6926163 | U24: 69.90695696 | V24: =CRotate_Trans($F$1:$G$1,V22:W22,$D$1) -> 85.57122944 | W24: 134.1806501
B38: =C38*D_R -> 0.0872664626 | C38: =C1 -> 5 | D38: =50 -> 50 | E38: 45
C39: =C3+$C$38 -> 35 | D39: =$D$38+F3 -> 35.86767352 | E39: =$E$38+G3 -> 149.1646646 | H39: =((D39-$D$38)*COS($B$38))-(E39-$E$38)*SIN($B$38) -> -23.15709742 | I39: =((D39-$D$38)*SIN($B$38))+(E39-$E$38)*COS($B$38) -> 102.5365732
C40: =C4+$C$38 -> 5 | D40: =$D$38+F4 -> 79.82487751 | E40: =$E$38+G4 -> 163.04862 | H40: =((D40-$D$38)*COS($B$38))-(E40-$E$38)*SIN($B$38) -> 19.42276969 | I40: =((D40-$D$38)*SIN($B$38))+(E40-$E$38)*COS($B$38) -> 120.1988187
C41: -45 | D41: 102.7992225 | E41: 129.9249204 | H41: 45.19661097 | I41: 89.2035109
C42: -70 | D42: 59.27779719 | E42: 111.0599915 | H42: 3.484984747 | I42: 66.61722661

Sheet Analysis
V1: =PI()/180 -> 0.01745329252
B2: A0 | C2: =Synthesis!V10:W10 -> -121.9227369 | D2: -6.538209668 | E2: B0 | F2: =Synthesis!V14:W14 -> 55.9379771 | G2: 21.72077147 | J2: =Synthesis!A8:A17 -> E1 | K2: =Synthesis!F2:G2 -> 0 | L2: 0 | M2: 0
B3: A | C3: =Synthesis!T10:U10 -> -52.42482861 | D3: -86.88871782 | E3: B | F3: =Synthesis!T14:U14 -> -146.5452137 | G3: 10.08604302 | J3: F1 | K3: 20 | L3: 0
B4: C | C4: 0 | D4: 0 | E4: C | F4: 0 | G4: 0 | J4: E2 | K4: =Synthesis!F3:G3 -> -14.13232648 | L4: 104.1646646 | M4: 0.5235987756
J5: F2 | K5: =K4+20*COS(M4) -> 3.188181597 | L5: =L4+20*SIN(M4) -> 114.1646646
A6: Link lengths | C6: İnitial Angles | J6: E3 | K6: =Synthesis!F4:G4 -> 29.82487751 | L6: 118.04862 | M6: 0
A7: A0A | B7: =mag((C2-C3),(D2-D3)) -> 106.2363564 | C7: <xA0A | D7: =ATAN2((C3-C2),(D3-D2)) -> -0.8576957882 | E7: =D7/D_R -> -49.14234877 | J7: F3 | K7: =K6+20*COS(M6) -> 49.82487751 | L7: =L6+20*SIN(M6) -> 118.04862
A8: AC | B8: =mag((C3-C4),(D3-D4)) -> 101.4791207 | C8: <xAB | D8: =ATAN2((F3-C3),(G3-D3)) -> 2.341258666 | E8: =D8/D_R -> 134.1442403 | J8: E4 | K8: =Synthesis!F5:G5 -> 52.79922247 | L8: 84.92492041 | M8: -0.872664626
A9: B0B | B9: =mag((F2-F3),(G2-G3)) -> 202.8171824 | C9: <xB0B | D9: =ATAN2((F3-F2),(G3-G2)) -> -3.084195548 | E9: =D9/D_R -> -176.7113881 | J9: F4 | K9: =K8+20*COS(M8) -> 65.65497466 | L9: =L8+20*SIN(M8) -> 69.60403155
A10: BC | B10: =mag((F3-F4),(G3-G4)) -> 146.891892 | C10: Fixed Angles | J10: E5 | K10: =Synthesis!F6:G6 -> 9.277797193 | L10: 66.05999152 | M10: -1.308996939
A11: AB | B11: =mag((C3-F3),(D3-G3)) -> 135.1397467 | C11: <xAoBo | D11: =ATAN2((F2-C2),(G2-D2)) -> 0.1575656105 | E11: =D11/D_R -> 9.027844476 | J11: F5 | K11: =K10+20*COS(M10) -> 14.45417809 | L11: =L10+20*SIN(M10) -> 46.74147499
A12: A0B0 | B12: =mag((C2-F2),(D2-G2)) -> 180.0916533 | C12: <BAC | D12: =D8-ATAN2((C4-C3),(D4-D3)) -> 1.313345828 | E12: =D12/D_R -> 75.249173
C13: <ACD | D13: 1.03193812 | E13: =D13/D_R -> 59.12569901
A15: q | B15: =A19+0.01*A20 -> 0.28 | C15: =B15*D_R -> 0.004886921906 | D15: wr to fixed Link | F15: wr to x axis | H15: In degrees
A16: q' | B16: =B15+E7 -> -48.86234877 | C16: =B16*D_R -> -0.8528088663 | D16: q13 | E16: q14 | F16: q13 | G16: q14 | H16: q13 | I16: q14
A17: q" | B17: =B16-E11 -> -57.89019325 | C17: =B17*D_R -> -1.010374477 | D17: =FourBar2(B7,B11,B9,B12,1,C17) -> 2.187718338 | E17: 3.041617039 | F17: =D17+$D$11 -> 2.345283948 | G17: =E17+$D$11 -> 3.199182649 | H17: =F17/D_R -> 134.374872 | I17: =G17/D_R -> 183.2996637
A19: 0 | B19: A0 | C19: =C2 -> -121.9227369 | D19: =D2 -> -6.538209668
A20: 28 | B20: A | C20: =C19+B7*COS(C16) -> -52.03299339 | D20: =D19+B7*SIN(C16) -> -86.54812885 | G20: 54.13342383
B21: B | C21: =C27+B9*COS(G17) -> -146.5429657 | D21: =D27+B9*SIN(G17) -> 10.04698625
B22: C | C22: =C20+B8*COS(F17-D12) -> 0.04165982499 | D22: =D20+B8*SIN(F17-D12) -> 0.5509092082
B23: A | C23: =C20 -> -52.03299339 | D23: =D20 -> -86.54812885
B24: C | C24: =C22 -> 0.04165982499 | D24: =D22 -> 0.5509092082
B25: D | C25: =C24+20*COS(F17-D12-D13) -> 20.04165982 | D25: =D24+20*SIN(F17-D12-D13) -> 0.5509092082
B26: B | C26: =C21 -> -146.5429657 | D26: =D21 -> 10.04698625
B27: B0 | C27: =F2 -> 55.9379771 | D27: =G2 -> 21.72077147
